bitfinex-derivatives/quotes_BTCF0:USTF0_20250805
["timestamp","ask_amount","ask_price","bid_price","bid_amount"]
[1754413770816,0.67689919,113180.0,113170.0,1.23106095]
[1754413771821,0.67689919,113180.0,113170.0,1.22223986]
[1754413772424,0.67689919,113180.0,113170.0,1.1253163]
[1754413772629,1.14879991,113180.0,113170.0,0.94856]
[1754413772818,1.14879991,113180.0,113170.0,1.1253163]
[1754413773019,0.67689919,113180.0,113170.0,1.1253163]
[1754413773224,0.67689919,113180.0,113170.0,1.62188702]
[1754413773629,0.56019919,113180.0,113170.0,1.07871854]
[1754413773924,0.5375386,113190.0,113180.0,0.2694308]
[1754413774228,0.5375386,113190.0,113180.0,0.74133152]
[1754413774629,0.5602986,113190.0,113180.0,0.74133152]
[1754413775130,0.5375386,113190.0,113180.0,0.74133152]
[1754413775328,0.7122805,113200.0,113190.0,0.2694152]
[1754413775528,0.69059904,113200.0,113190.0,1.35619592]
[1754413776032,0.668101,113200.0,113190.0,1.35619592]
[1754413776624,0.668101,113200.0,113190.0,0.74131592]
[1754413776829,0.06464,113200.0,113190.0,1.35639592]
[1754413777226,0.06364,113200.0,113190.0,1.35639592]
[1754413777428,0.6258326,113220.0,113190.0,1.96119144]
[1754413777726,0.62691668,113220.0,113210.0,0.64865462]
[1754413777929,0.62691668,113220.0,113210.0,1.26385462]
[1754413778224,0.58274668,113220.0,113210.0,1.26385462]
[1754413779023,0.04525668,113220.0,113210.0,1.26385462]
[1754413779231,0.2236184,113230.0,113220.0,0.1767383]
[1754413779232,0.1994284,113230.0,113220.0,0.1767383]
[1754413779534,0.5602284,113230.0,113220.0,0.64863902]
[1754413780031,0.6247484,113230.0,113220.0,0.64863902]
[1754413780437,0.6257484,113230.0,113220.0,0.64863902]
[1754413780627,0.6257484,113230.0,113220.0,0.72994934]
[1754413780823,0.2649484,113230.0,113220.0,0.72994934]
[1754413781023,0.06552,113230.0,113220.0,0.73883229]
[1754413781226,0.06552,113230.0,113220.0,1.09963229]
[1754413782134,0.06452,113230.0,113220.0,1.10063229]
[1754413782729,0.6927112,113240.0,113230.0,0.1767227]
[1754413783029,0.7396612,113240.0,113230.0,1.34509374]
[1754413783230,0.7654212,113240.0,113230.0,1.34509374]
[1754413783729,0.78787424,113240.0,113230.0,1.34509374]
[1754413784235,0.80910424,113240.0,113230.0,1.34509374]
[1754413784535,0.80910424,113240.0,113230.0,0.7918827]
[1754413784936,0.7866512,113240.0,113230.0,0.7918827]
[1754413785235,0.7866512,113240.0,113230.0,0.7928827]
[1754413785633,0.7866512,113240.0,113230.0,1.34609374]
[1754413786135,0.7866512,113240.0,113230.0,1.41577773]
[1754413788636,0.742486,113240.0,113230.0,1.41577773]
[1754413793339,0.381686,113240.0,113230.0,1.41577773]
[1754413794735,0.381686,113240.0,113230.0,0.86256669]
[1754413794933,0.381686,113240.0,113230.0,1.41577773]
[1754413796746,0.381686,113240.0,113230.0,1.67867773]
[1754413797342,0.02276,113240.0,113230.0,1.67867773]
[1754413797551,0.6054623,113250.0,113240.0,0.1767071]
[1754413797845,0.6054623,113250.0,113240.0,0.72991814]
[1754413798243,0.5612916,113250.0,113240.0,0.72991814]
[1754413798942,0.6308816,113250.0,113240.0,0.72991814]
[1754413799142,0.6541316,113250.0,113240.0,0.72991814]
[1754413799342,0.6551316,113250.0,113240.0,0.72991814]
[1754413799547,0.6551316,113250.0,113240.0,0.1767071]
[1754413799747,0.6551316,113250.0,113240.0,0.72991814]
[1754413800249,0.6551316,113250.0,113240.0,0.1767071]
[1754413800644,0.2933472,113240.0,113230.0,0.55345429]
[1754413800839,0.6541472,113240.0,113230.0,1.16781429]
[1754413801044,0.6541472,113240.0,113230.0,1.63996091]
[1754413801548,0.6541472,113240.0,113230.0,1.59579871]
[1754413801943,0.6541472,113240.0,113230.0,1.59679871]
[1754413803552,0.6551472,113240.0,113230.0,1.59579871]
[1754413803954,0.6551472,113240.0,113230.0,1.12365209]
[1754413804156,0.6551472,113240.0,113230.0,0.98143871]
[1754413804451,0.6551472,113240.0,113230.0,1.59579871]
[1754413805048,0.6541472,113240.0,113230.0,1.59679871]
[1754413805750,0.6541471,113240.0,113230.0,1.59679871]
[1754413807747,0.6403071,113240.0,113230.0,1.59679871]
[1754413808252,0.6627267,113240.0,113230.0,1.59679871]
[1754413808452,0.2795071,113240.0,113230.0,1.59679871]
[1754413808648,0.2005071,113240.0,113230.0,1.95759871]
[1754413808855,0.2005071,113240.0,113230.0,1.59679871]
[1754413809152,0.2611271,113240.0,113230.0,1.59679871]
[1754413809354,0.31577315,113240.0,113230.0,1.59679871]
[1754413809652,0.04628605,113240.0,113230.0,1.59679871]
[1754413810348,0.22293315,113240.0,113230.0,1.59679871]
[1754413810649,0.31577315,113240.0,113230.0,1.59679871]
[1754413812153,0.26971315,113240.0,113230.0,1.59679871]
[1754413812655,0.31577315,113240.0,113230.0,1.59679871]
[1754413813558,0.24788315,113240.0,113230.0,1.59679871]
[1754413813752,0.22293315,113240.0,113230.0,1.59679871]
[1754413814354,0.04628605,113240.0,113230.0,1.95759871]
[1754413814560,0.22293305,113240.0,113230.0,1.59679871]
[1754413814759,0.31577305,113240.0,113230.0,1.59679871]
[1754413818560,0.30193305,113240.0,113230.0,1.59679871]
[1754413818760,0.26971305,113240.0,113230.0,1.59679871]
[1754413820361,0.31577305,113240.0,113230.0,1.59679871]
[1754413823754,0.26971305,113240.0,113230.0,1.59679871]
[1754413823959,0.24788305,113240.0,113230.0,1.59679871]
[1754413824767,0.31807305,113240.0,113230.0,1.59679871]
[1754413824960,0.67887305,113240.0,113230.0,1.59679871]
[1754413825167,0.68049305,113240.0,113230.0,1.59679871]
[1754413826267,0.07285605,113240.0,113230.0,1.59679871]
[1754413826667,0.04739605,113240.0,113230.0,1.59679871]
[1754413826863,0.02242605,113240.0,113230.0,1.95759871]
[1754413827065,0.13545,113250.0,113240.0,0.1767071]
[1754413827269,0.13545,113250.0,113240.0,1.48180034]
[1754413827670,0.13545,113250.0,113240.0,0.5375071]
[1754413827970,0.13545,113250.0,113240.0,1.48180034]
[1754413828269,0.13645,113250.0,113240.0,1.48180034]
[1754413829270,0.13545,113250.0,113240.0,1.48280034]
[1754413829572,0.3375415,113250.0,113240.0,1.01065372]
[1754413829773,0.3854815,113250.0,113240.0,1.01065372]
[1754413829966,0.4077315,113250.0,113240.0,1.01265372]
[1754413830876,0.2972515,113250.0,113240.0,1.01265372]
[1754413831376,0.2972515,113250.0,113240.0,1.01065372]
[1754413832275,0.2972515,113250.0,113240.0,1.27355372]
[1754413833470,0.02497,113250.0,113240.0,1.27355372]
[1754413833676,0.02497,113250.0,113240.0,1.74570034]
[1754413834473,0.07973,113260.0,113250.0,0.1766315]
[1754413834670,0.05476,113260.0,113250.0,1.88681812]
[1754413835668,0.08073,113260.0,113250.0,1.88681812]
[1754413836280,0.05576,113260.0,113250.0,1.88681812]
[1754413836478,0.02497,113280.0,113270.0,0.1766603]
[1754413836783,0.13277,113280.0,113270.0,1.26348692]
[1754413837173,0.3093547,113280.0,113270.0,1.26348692]
[1754413837676,0.3434647,113280.0,113270.0,1.27234964]
[1754413838578,0.3434647,113280.0,113270.0,1.27434964]
[1754413839579,0.4050047,113280.0,113270.0,1.27434964]
[1754413839880,0.2972047,113280.0,113270.0,1.27434964]
[1754413840575,0.2972047,113280.0,113270.0,0.80320302]
[1754413840780,0.6580047,113280.0,113270.0,1.27534964]
[1754413841375,0.6580047,113280.0,113270.0,1.27434964]
[1754413841680,0.6580047,113280.0,113270.0,0.65866964]
[1754413841879,0.6580047,113280.0,113270.0,1.27280964]
[1754413842382,0.6580047,113280.0,113270.0,0.80066302]
[1754413842577,0.6580047,113280.0,113270.0,0.001]
[1754413842778,1.13015132,113280.0,113270.0,0.61516]
[1754413843178,1.13015132,113280.0,113270.0,0.7917603]
[1754413843681,0.6580047,113280.0,113270.0,0.7917603]
[1754413844378,0.6610047,113280.0,113270.0,0.7917603]
[1754413844979,0.2972203,113270.0,113260.0,0.53678276]
[1754413845184,0.6580203,113270.0,113260.0,1.15094276]
[1754413845987,0.6580203,113270.0,113260.0,1.10679146]
[1754413846784,0.6580203,113270.0,113260.0,1.57893808]
[1754413847680,0.6580203,113270.0,113260.0,1.10679146]
[1754413847880,0.6580203,113270.0,113260.0,1.57893808]
[1754413848387,0.6580203,113270.0,113260.0,1.57993808]
[1754413849181,0.5623703,113270.0,113260.0,1.57993808]
[1754413849588,0.2015703,113270.0,113260.0,1.57993808]
[1754413849783,0.6983763,113280.0,113270.0,0.1766603]
[1754413849983,0.7324863,113280.0,113270.0,0.64880692]
[1754413850182,0.7463163,113280.0,113270.0,0.64880692]
[1754413850384,0.7463163,113280.0,113270.0,1.26312692]
[1754413850583,0.7463163,113280.0,113270.0,1.26308692]
[1754413851190,0.7021668,113280.0,113270.0,1.26308692]
[1754413851491,0.6065168,113280.0,113270.0,1.26308692]
[1754413851690,0.6989168,113280.0,113270.0,0.7909403]
[1754413851891,0.6989168,113280.0,113270.0,1.26308692]
[1754413852887,0.6989168,113280.0,113270.0,1.52598692]
[1754413853289,0.6989168,113280.0,113270.0,1.0538403]
[1754413853895,0.72094991,113280.0,113270.0,1.52598692]
[1754413854095,0.72094991,113280.0,113270.0,1.52698692]
[1754413855492,0.72094991,113280.0,113270.0,1.52598692]
[1754413856095,0.72094991,113280.0,113270.0,1.52698692]
[1754413857295,0.72094991,113280.0,113270.0,1.52598692]
[1754413858896,0.72094991,113280.0,113270.0,0.91170692]
[1754413859097,0.72094991,113280.0,113270.0,1.52854692]
[1754413860098,0.6989168,113280.0,113270.0,1.52854692]
[1754413860299,0.72097572,113280.0,113270.0,1.52854692]
[1754413860600,0.72097572,113280.0,113270.0,0.4395603]
[1754413860796,0.72097572,113280.0,113270.0,0.4395003]
[1754413860997,0.72097572,113280.0,113270.0,1.0560203]
[1754413863992,0.31477572,113280.0,113270.0,1.0560203]
[1754413864197,0.31477572,113280.0,113270.0,1.52816692]
[1754413864400,0.22361362,113280.0,113270.0,1.52816692]
[1754413865709,0.22361362,113280.0,113270.0,1.52916692]
[1754413866100,0.19864362,113280.0,113270.0,1.52916692]
[1754413866804,0.22179362,113280.0,113270.0,1.52916692]
[1754413867306,0.02205892,113280.0,113270.0,1.52916692]
[1754413867496,0.6929646,113290.0,113280.0,0.1766447]
[1754413867800,0.62675812,113290.0,113280.0,0.91169132]
[1754413868008,0.40603332,113290.0,113280.0,1.38383794]
[1754413868198,0.55945242,113290.0,113280.0,1.38383794]
[1754413868508,0.5605191,113290.0,113280.0,0.91169132]
[1754413869405,0.6531591,113290.0,113280.0,0.91169132]
[1754413869796,0.6531591,113290.0,113280.0,0.91269132]
[1754413873708,0.6531591,113290.0,113280.0,1.52817132]
[1754413873900,0.6393791,113290.0,113280.0,1.52817132]
[1754413874501,0.6531591,113290.0,113280.0,1.52817132]
[1754413879406,0.2469591,113290.0,113280.0,1.52817132]
[1754413879613,0.6175891,113290.0,113280.0,1.52817132]
[1754413879814,0.6531591,113290.0,113280.0,1.52817132]
[1754413889516,0.6393791,113290.0,113280.0,1.52817132]
[1754413890721,0.6540591,113290.0,113280.0,1.52817132]
[1754413895031,0.2932591,113290.0,113280.0,1.52817132]
[1754413898440,0.1997191,113290.0,113280.0,1.52817132]
[1754413899134,0.2252791,113290.0,113280.0,1.52817132]
[1754413899334,0.2740491,113290.0,113280.0,1.52817132]
[1754413899737,0.2958691,113290.0,113280.0,1.52817132]
[1754413902939,0.6566691,113290.0,113280.0,1.52821132]
[1754413903435,0.6566691,113290.0,113280.0,1.0560647]
[1754413903635,0.6566691,113290.0,113280.0,0.91273132]
[1754413903835,0.67913932,113290.0,113280.0,1.0547847]
[1754413904440,0.67913932,113290.0,113280.0,1.52693132]
[1754413905633,0.31833932,113290.0,113280.0,1.52693132]
[1754413905841,0.67913932,113290.0,113280.0,1.52693132]
[1754413906238,0.67913932,113290.0,113280.0,1.0547847]
[1754413906438,0.67913932,113290.0,113280.0,1.52693132]
[1754413908345,0.67913932,113290.0,113280.0,1.52689132]
[1754413909438,0.67913932,113290.0,113280.0,0.91273132]
[1754413909645,0.67913932,113290.0,113280.0,1.52689132]
[1754413910440,0.67913932,113290.0,113280.0,0.91273132]
[1754413910744,0.67913932,113290.0,113280.0,0.4405847]
[1754413911044,0.67913932,113290.0,113280.0,1.0547447]
[1754413911646,0.67913932,113290.0,113280.0,1.52689132]
[1754413913239,1.51208594,113290.0,113280.0,0.26394]
[1754413913438,1.51208594,113290.0,113280.0,0.8781]
[1754413913745,1.98862994,113290.0,113280.0,0.6152]
[1754413914843,1.81208594,113290.0,113280.0,0.00104]
[1754413915043,1.51208594,113290.0,113280.0,0.6152]
[1754413916550,1.51208594,113290.0,113280.0,0.00104]
[1754413916749,1.51208594,113290.0,113280.0,0.6152]
[1754413917652,1.03993932,113290.0,113280.0,0.6152]
[1754413918252,1.03993932,113290.0,113280.0,0.7917847]
[1754413918652,1.03993932,113290.0,113280.0,0.6152]
[1754413918848,1.03993932,113290.0,113280.0,0.7917847]
[1754413922448,1.03993932,113290.0,113280.0,0.7918447]
[1754413923956,1.03993932,113290.0,113280.0,1.26399132]
[1754413924554,1.03993932,113290.0,113280.0,0.7918447]
[1754413928251,0.99116932,113290.0,113280.0,1.26399132]
[1754413928454,0.96873932,113290.0,113280.0,1.26399132]
[1754413928659,1.03786932,113290.0,113280.0,1.26399132]
[1754413928956,0.67706932,113290.0,113280.0,1.26399132]
[1754413929149,0.02247022,113290.0,113280.0,1.73613794]
[1754413929357,0.04738022,113290.0,113280.0,2.09693794]
[1754413929552,0.02491,113290.0,113280.0,1.48277794]
[1754413929746,0.02491,113290.0,113280.0,2.09693794]
[1754413929951,0.02491,113290.0,113280.0,2.35983794]
[1754413930351,0.3374949,113300.0,113290.0,0.1766291]
[1754413930556,0.31700588,113300.0,113290.0,0.64877572]
[1754413931158,0.34195588,113300.0,113290.0,0.64877572]
[1754413931355,0.41108588,113300.0,113290.0,0.64877572]
[1754413931550,0.3874358,113300.0,113290.0,0.64977572]
[1754413933955,0.41108174,113300.0,113290.0,0.64977572]
[1754413934155,0.3874358,113300.0,113290.0,0.64977572]
[1754413935258,0.3874358,113300.0,113290.0,0.72043893]
[1754413935658,0.2955558,113300.0,113290.0,0.72043893]
[1754413935852,0.2955558,113300.0,113290.0,0.98333893]
[1754413938662,0.31972428,113300.0,113290.0,0.98333893]
[1754413939659,0.2955558,113300.0,113290.0,0.98333893]
[1754413942959,0.68051811,113300.0,113290.0,0.51119231]
[1754413943264,0.68051811,113300.0,113290.0,1.12517231]
[1754413943464,0.68051811,113300.0,113290.0,1.59731893]
[1754413944359,0.68051811,113300.0,113290.0,1.12517231]
[1754413944560,0.68051811,113300.0,113290.0,1.59731893]
[1754413944759,0.68151811,113300.0,113290.0,1.59631893]
[1754413947667,0.68151811,113300.0,113290.0,0.51013231]
[1754413947864,0.68151811,113300.0,113290.0,1.12413231]
[1754413948668,0.68151811,113300.0,113290.0,1.12419231]
[1754413950368,0.68151811,113300.0,113290.0,1.12413231]
[1754413951870,0.68151811,113300.0,113290.0,0.94756321]
[1754413952266,0.68151811,113300.0,113290.0,1.12413231]
[1754413953573,0.68151811,113300.0,113290.0,0.86129231]
[1754413955581,0.32071811,113300.0,113290.0,1.33343893]
[1754413955769,0.68335811,113300.0,113290.0,0.86129231]
[1754413955971,0.68335811,113300.0,113290.0,1.33343893]
[1754413956478,0.22663811,113300.0,113290.0,0.86129231]
[1754413956775,0.22663811,113300.0,113290.0,1.33343893]
[1754413958579,0.22563811,113300.0,113290.0,1.33443893]
[1754413959378,0.22563811,113300.0,113290.0,1.59733893]
[1754413960076,0.02416231,113300.0,113290.0,1.59733893]
[1754413960277,0.04675231,113300.0,113290.0,1.59733893]
[1754413961479,0.22330581,113300.0,113290.0,1.59733893]
[1754413963375,0.31922581,113300.0,113290.0,1.59733893]
[1754413964679,0.31922581,113300.0,113290.0,1.12519231]
[1754413964879,0.31922581,113300.0,113290.0,1.59733893]
[1754413967380,0.27113581,113300.0,113290.0,1.59733893]
[1754413967685,0.24853581,113300.0,113290.0,1.59733893]
[1754413967877,0.22330581,113300.0,113290.0,1.59733893]
[1754413968185,0.7301216,113320.0,113310.0,0.1765419]
[1754413968380,0.76827067,113320.0,113310.0,1.26262852]
[1754413968981,0.82215067,113320.0,113310.0,1.26262852]
[1754413969384,0.82515067,113320.0,113310.0,1.26262852]
[1754413969583,0.82815067,113320.0,113310.0,1.26262852]
[1754413970384,0.82815067,113320.0,113310.0,1.27131514]
[1754413971181,0.82615067,113320.0,113310.0,1.27131514]
[1754413972185,0.82315067,113320.0,113310.0,1.27131514]
[1754413973985,0.82315067,113320.0,113310.0,0.18528852]
[1754413974188,1.18395067,113320.0,113310.0,0.6138]
[1754413974383,0.2968421,113310.0,113300.0,0.2206837]
[1754413974682,0.2968577,113300.0,113290.0,0.30032613]
[1754413974883,0.6576577,113300.0,113290.0,0.91402613]
[1754413975082,0.6576577,113300.0,113290.0,1.38623275]
[1754413975281,0.6576577,113300.0,113290.0,0.91408613]
[1754413975481,0.6576577,113300.0,113290.0,1.38623275]
[1754413976077,0.68200353,113300.0,113290.0,0.77247275]
[1754413976280,0.68200353,113300.0,113290.0,1.38823275]
[1754413977888,0.68300353,113300.0,113290.0,1.38623275]
[1754413979985,0.68300353,113300.0,113290.0,1.38723275]
[1754413980893,0.68300353,113300.0,113290.0,0.29242971]
[1754413981088,0.68300353,113300.0,113290.0,0.68442321]
[1754413981392,0.68300353,113300.0,113290.0,0.86099651]
[1754413981888,0.68300353,113300.0,113280.0,0.60462292]
[1754413981889,0.2968733,113290.0,113280.0,0.73711462]
[1754413982094,0.68201913,113290.0,113280.0,1.35087462]
[1754413982394,1.15416575,113290.0,113280.0,0.6138]
[1754413982601,0.68201913,113290.0,113280.0,0.6138]
[1754413982891,0.68201913,113290.0,113280.0,0.61376]
[1754413983196,0.68201913,113290.0,113280.0,1.2713187]
[1754413983495,0.68201675,113290.0,113280.0,1.2713187]
[1754413983990,0.68201675,113290.0,113280.0,1.2723187]
[1754413984593,0.68201675,113290.0,113280.0,0.80017208]
[1754413984789,0.68201675,113290.0,113280.0,1.2723187]
[1754413985093,1.04281675,113290.0,113280.0,1.2723187]
[1754413986794,1.04281675,113290.0,113280.0,0.7914489]
[1754413987094,1.04281675,113290.0,113280.0,1.26359552]
[1754413987594,1.04281675,113290.0,113280.0,0.6148]
[1754413988292,1.04281675,113290.0,113280.0,0.7913894]
[1754413989295,1.04281675,113290.0,113280.0,0.6148]
[1754413989994,1.04281675,113290.0,113280.0,0.7913894]
[1754413990396,1.04281675,113290.0,113280.0,1.26353602]
[1754413990896,1.04281675,113290.0,113280.0,1.08694662]
[1754413991196,1.04281675,113290.0,113280.0,0.6148]
[1754413991396,1.04281675,113290.0,113280.0,0.7913894]
[1754413991798,1.04281675,113290.0,113280.0,0.6148]
[1754413996598,1.04281675,113290.0,113280.0,0.7913893]
[1754413996788,1.04281675,113290.0,113280.0,0.7914493]
[1754413997395,1.04281675,113290.0,113280.0,1.26359592]
[1754413998294,1.04281675,113290.0,113280.0,0.7914493]
[1754413998499,1.04281675,113290.0,113280.0,1.26359592]
[1754413998698,0.94677675,113290.0,113280.0,1.26359592]
[1754413999002,1.04281675,113290.0,113280.0,1.26359592]
[1754413999791,0.99434675,113290.0,113280.0,1.26359592]
[1754413999996,1.04281675,113290.0,113280.0,1.26359592]
[1754414000303,1.04281675,113290.0,113280.0,0.7914493]
[1754414000503,1.04281675,113290.0,113280.0,1.26359592]
[1754414001099,1.04281675,113290.0,113280.0,0.7914493]
[1754414001500,1.04281675,113290.0,113280.0,1.26359592]
[1754414004002,0.97208675,113290.0,113280.0,1.26359592]
[1754414004306,1.04169675,113290.0,113280.0,1.26359592]
[1754414004912,1.04169675,113290.0,113280.0,1.08700662]
[1754414005211,1.04169675,113290.0,113280.0,1.26359602]
[1754414006011,1.04169675,113290.0,113280.0,0.7914494]
[1754414006211,1.04169675,113290.0,113280.0,1.26359602]
[1754414008212,1.04169675,113290.0,113280.0,1.26355602]
[1754414008507,1.04169675,113290.0,113280.0,0.7914094]
[1754414008712,1.04169675,113290.0,113280.0,1.26355602]
[1754414009712,1.04169675,113290.0,113280.0,0.7914094]
[1754414009906,1.04169675,113290.0,113280.0,1.26355602]
[1754414011216,1.04169675,113290.0,113280.0,1.73570264]
[1754414011217,0.22377725,113290.0,113280.0,1.73570264]
[1754414011416,0.58457725,113290.0,113280.0,1.73570264]
[1754414011614,0.58457725,113290.0,113280.0,1.26355602]
[1754414012721,0.61609725,113290.0,113280.0,1.26355602]
[1754414013623,0.64182725,113290.0,113280.0,1.26355602]
[1754414013822,0.65671725,113290.0,113280.0,1.26355602]
[1754414015024,0.61030725,113290.0,113280.0,1.26355602]
[1754414015825,0.66502725,113290.0,113280.0,1.26355602]
[1754414016018,0.67991725,113290.0,113280.0,1.26355602]
[1754414018320,0.67991725,113290.0,113280.0,1.26349602]
[1754414018528,0.67991725,113290.0,113280.0,0.47324662]
[1754414018721,0.67991725,113290.0,113280.0,1.26347602]
[1754414021526,0.67991725,113290.0,113280.0,0.61468]
[1754414022527,0.67991725,113290.0,113280.0,0.7912692]
[1754414022724,1.15206387,113290.0,113280.0,0.00104]
[1754414023031,1.15206387,113290.0,113280.0,0.61464]
[1754414023229,1.16108203,113290.0,113280.0,0.61464]
[1754414023429,0.68893541,113290.0,113280.0,0.61464]
[1754414023830,0.67991725,113290.0,113280.0,0.61464]
[1754414024729,1.15206387,113290.0,113280.0,0.61464]
[1754414025525,1.16087928,113290.0,113280.0,0.61464]
[1754414029733,0.67991725,113290.0,113280.0,1.26337572]
[1754414030930,0.67991725,113290.0,113280.0,0.7912891]
[1754414031130,0.67991725,113290.0,113280.0,1.26343572]
[1754414033540,0.63350725,113290.0,113280.0,1.26343572]
[1754414033838,0.68123725,113290.0,113280.0,1.26343572]
[1754414035242,0.68123725,113290.0,113280.0,0.7912891]
[1754414035539,0.68123725,113290.0,113280.0,1.26343572]
[1754414040441,0.64759725,113290.0,113280.0,1.26343572]
[1754414040641,0.68123725,113290.0,113280.0,1.26343572]
[1754414044539,0.58457725,113290.0,113280.0,1.26343572]
[1754414045135,0.58457725,113290.0,113280.0,1.52633572]
[1754414045639,0.66571725,113290.0,113280.0,1.52633572]
[1754414045845,0.67980725,113290.0,113280.0,1.52633572]
[1754414047639,0.31900725,113290.0,113280.0,1.52633572]
[1754414047946,0.67980725,113290.0,113280.0,1.52633572]
[1754414057157,0.67980725,113290.0,113280.0,1.26305572]
[1754414057457,0.67980725,113290.0,113280.0,0.7909091]
[1754414057658,0.67980725,113290.0,113280.0,1.26311572]
[1754414060161,1.04060725,113290.0,113280.0,0.7909691]
[1754414060350,1.04060725,113290.0,113280.0,1.26311572]
[1754414060550,0.97034725,113290.0,113280.0,1.26311572]
[1754414060760,1.04060725,113290.0,113280.0,1.26311572]
[1754414062960,1.04060725,113290.0,113280.0,1.52601572]
[1754414064666,0.94537725,113290.0,113280.0,1.52601572]
[1754414064852,1.03938725,113290.0,113280.0,1.52601572]
[1754414065857,0.99208725,113290.0,113280.0,1.52601572]
[1754414066058,0.07111345,113290.0,113280.0,1.52601572]
[1754414066259,0.09162,113300.0,113290.0,0.1766336]
[1754414066464,0.33912767,113300.0,113290.0,0.64878022]
[1754414066757,0.73269767,113300.0,113290.0,0.64878022]
[1754414066957,0.74722767,113300.0,113290.0,0.64878022]
[1754414067153,0.722988,113300.0,113290.0,0.64878022]
[1754414070465,0.722988,113300.0,113290.0,0.71870839]
[1754414071766,0.722988,113300.0,113290.0,0.98160839]
[1754414072067,0.628978,113300.0,113290.0,0.98160839]
[1754414072260,0.675688,113300.0,113290.0,0.98160839]
[1754414072458,0.708458,113300.0,113290.0,0.98160839]
[1754414072661,0.722988,113300.0,113290.0,0.98160839]
[1754414073166,0.3148879,113300.0,113290.0,0.98160839]
[1754414073366,0.2934879,113300.0,113290.0,0.98160839]
[1754414073869,0.09120976,113300.0,113290.0,0.98160839]
[1754414074068,0.47650976,113300.0,113290.0,0.98160839]
[1754414074366,0.65306776,113300.0,113290.0,0.98160839]
[1754414074966,0.69977776,113300.0,113290.0,0.98160839]
[1754414075169,0.74707776,113300.0,113290.0,0.98260839]
[1754414076670,0.74707776,113300.0,113290.0,0.98360839]
[1754414077267,0.74707776,113300.0,113290.0,1.59656839]
[1754414077472,0.74707776,113300.0,113290.0,1.59650839]
[1754414077864,0.74707776,113300.0,113290.0,1.33360839]
[1754414078265,0.74707776,113300.0,113290.0,1.33160839]
[1754414078570,0.65306776,113300.0,113290.0,1.33160839]
[1754414079769,0.71114776,113300.0,113290.0,1.33160839]
[1754414079969,0.72567776,113300.0,113290.0,1.33160839]
[1754414080171,0.09162,113300.0,113290.0,1.33160839]
[1754414080370,0.06712,113300.0,113290.0,1.69240839]
[1754414080570,0.09162,113300.0,113290.0,1.69240839]
[1754414081161,0.09162,113300.0,113290.0,1.69340839]
[1754414081668,0.09162,113300.0,113290.0,1.69440839]
[1754414082771,0.4049298,113330.0,113320.0,0.1765268]
[1754414082772,0.625586,113330.0,113320.0,0.1765268]
[1754414082965,0.74366406,113330.0,113320.0,1.26161342]
[1754414083166,0.20057926,113330.0,113320.0,1.99666004]
[1754414083366,0.22507926,113330.0,113320.0,1.99666004]
[1754414083666,0.04856806,113330.0,113320.0,1.99666004]
[1754414083867,0.3853,113330.0,113320.0,1.99666004]
[1754414084072,0.5618112,113330.0,113320.0,1.99666004]
[1754414084275,0.6578212,113330.0,113320.0,1.0523668]
[1754414084466,0.6578212,113330.0,113320.0,1.52451342]
[1754414084661,0.6105212,113330.0,113320.0,1.52451342]
[1754414085068,0.6135212,113330.0,113320.0,1.53324737]
[1754414085269,0.6608212,113330.0,113320.0,1.53324737]
[1754414086775,0.6608212,113330.0,113320.0,0.92036737]
[1754414086976,0.6608212,113330.0,113320.0,1.53320737]
[1754414087877,0.6608212,113330.0,113320.0,1.53316737]
[1754414092177,0.6608212,113330.0,113320.0,0.92030727]
[1754414092381,0.6608212,113330.0,113320.0,1.53302727]
[1754414092582,0.68478009,113330.0,113320.0,0.2629]
[1754414092778,0.68478009,113330.0,113320.0,0.87562]
[1754414092979,1.15692671,113330.0,113320.0,0.87562]
[1754414093176,0.68478009,113330.0,113320.0,0.87562]
[1754414093372,0.68478009,113330.0,113320.0,1.0521466]
[1754414093578,0.68478009,113330.0,113320.0,1.52429322]
[1754414096481,0.68478009,113330.0,113320.0,1.26139322]
[1754414100385,0.68478009,113330.0,113320.0,6e-05]
[1754414100584,0.68478009,113330.0,113320.0,0.6127]
[1754414101287,0.68478009,113330.0,113320.0,0.7892265]
[1754414102485,0.68478009,113330.0,113320.0,0.6127]
[1754414103091,0.68478009,113330.0,113320.0,0.61264]
[1754414105190,0.68478009,113330.0,113320.0,0.7891665]
[1754414105491,0.68478009,113330.0,113320.0,0.61264]
[1754414106192,0.68478009,113330.0,113320.0,0.7891665]
[1754414107290,0.68478009,113330.0,113320.0,0.7892265]
[1754414109095,0.68478009,113330.0,113320.0,1.26137312]
[1754414110195,0.68278009,113330.0,113320.0,1.26137312]
[1754414110496,0.68378009,113330.0,113320.0,1.26137312]
[1754414110790,0.32298009,113330.0,113320.0,1.26137312]
[1754414111098,0.20146979,113330.0,113320.0,1.73351974]
[1754414111296,0.02495889,113330.0,113320.0,1.73351974]
[1754414111888,0.20146979,113330.0,113320.0,1.73351974]
[1754414112596,0.22477979,113330.0,113320.0,0.7892265]
[1754414112796,0.22477979,113330.0,113320.0,1.26137312]
[1754414114597,0.22477979,113330.0,113320.0,1.73351974]
[1754414115696,0.22477979,113330.0,113320.0,1.26137312]
[1754414117692,0.22477979,113330.0,113320.0,1.73351974]
[1754414118699,0.02495889,113330.0,113320.0,1.73351974]
[1754414119098,0.02495889,113330.0,113320.0,2.09431974]
[1754414119792,0.02395889,113330.0,113320.0,2.09431974]
[1754414121200,0.1998083,113340.0,113330.0,0.1765709]
[1754414121389,0.22378244,113340.0,113330.0,0.64871752]
[1754414122604,0.25025244,113340.0,113330.0,0.64871752]
[1754414122898,0.28241244,113340.0,113330.0,0.64871752]
[1754414123090,0.28241244,113340.0,113330.0,0.64971752]
[1754414123290,0.31969244,113340.0,113330.0,0.64971752]
[1754414123691,0.31969244,113340.0,113330.0,0.65071752]
[1754414123895,0.2957183,113340.0,113330.0,0.65071752]
[1754414124696,0.2957183,113340.0,113330.0,0.64971752]
[1754414125397,0.2957183,113340.0,113330.0,0.64871752]
[1754414125902,0.6565183,113340.0,113330.0,0.64871752]
[1754414126302,0.6565183,113340.0,113330.0,1.26103752]
[1754414128498,0.6575183,113340.0,113330.0,0.7888909]
[1754414128706,0.6575183,113340.0,113330.0,1.26103752]
[1754414129495,0.2150409,113330.0,113320.0,1.91338802]
[1754414129700,0.6562409,113330.0,113320.0,2.52566802]
[1754414130005,0.5868009,113330.0,113320.0,2.52566802]
[1754414130196,0.6562409,113330.0,113320.0,2.52566802]
[1754414131199,0.6562409,113330.0,113320.0,1.30506802]
[1754414131503,0.6562409,113330.0,113320.0,0.69284802]
[1754414131806,0.6562409,113330.0,113320.0,1.30512802]
[1754414132107,0.6562409,113330.0,113320.0,0.69284802]
[1754414132301,0.6562409,113330.0,113320.0,1.30508802]
[1754414132704,0.6562409,113330.0,113320.0,0.69284802]
[1754414132902,0.6562409,113330.0,113320.0,1.30508802]
[1754414133098,0.6562409,113330.0,113320.0,0.7888132]
[1754414133603,0.6562409,113330.0,113320.0,0.7887665]
[1754414135608,0.6572409,113330.0,113320.0,0.7887665]
[1754414137207,0.68123226,113330.0,113320.0,0.7887665]